[Event "Czech Championship 2024"]
[Site "Ostrava"]
[Date "2024.05.04"]
[Round "8.3"]
[White "Neuman, Petr"]
[Black "Stocek, Jiri"]
[Result "0-1"]
[ECO "E06"]
[WhiteElo "2429"]
[BlackElo "2531"]
[Annotator "TA"]
[PlyCount "84"]
[EventDate "2024.04.25"]
[EventType "tourn"]
[EventCountry "CZE"]
[SourceTitle "playchess.com"]
[Source "ChessBase"]
[SourceQuality "1"]
[TimeControl "40/5400+30:1800+30"]

{[%evp 11,84,14,25,20,18,21,12,13,0,-18,-12,-8,-14,-6,0,0,0,-6,-14,-36,-27,-54,-46,-52,-52,-50,-34,-102,-104,-102,-97,-95,-93,-95,0,-138,-116,-145,-156,-185,-181,-175,-167,-177,-171,-183,-185,-183,-184,-192,-181,-207,-192,-216,-198,-227,-242,-235,-240,-239,-234,-253,-252,-369,-172,-179,-104,-1083,-1017,-29973,-29974,-5421,-5302,-29983,-29984]} 1. Nf3 {[%emt 0:00:08]} Nf6 {[%emt 0:00:31]} 2. c4 {[%emt 0:00:07]} e6 {[%emt 0:00:32]} 3. g3 {[%emt 0:00:06]} d5 {[%emt 0:01:29]} 4. Bg2 {[%emt 0:00:25]} Be7 {[%emt 0:00:38]} 5. O-O {[%emt 0:00:08]} O-O {[%emt 0:00:05]} 6. d4 {[%emt 0:00:10]} a5 {[%emt 0:01:22]} 7. Nc3 {[%emt 0:02:56]} c6 {[%emt 0:01:28]} 8. b3 {[%emt 0:02:09]} b6 {[%emt 0:02:53]} 9. Ne5 {[%emt 0:23:02] The position is equal.} Ba6 {[%emt 0:07:46]} 10. e4 {[%emt 0:11:13]} Bb4 {[%emt 0:02:55]} 11. Bb2 {[%emt 0:05:30]} Bxc3 {[%emt 0:05:34]} 12. Bxc3 {[%emt 0:00:11]} Nxe4 {[%emt 0:00:05]} 13. Bxe4 {[%emt 0:00:32]} dxe4 {[%emt 0:00:17]} 14. Qg4 {[%emt 0:01:50]} f5 {[%emt 0:03:02]} 15. Qe2 {[%emt 0:01:17]} b5 {[%emt 0:21:34]} 16. f3 {[%emt 0:01:59]} Nd7 $1 {[%emt 0:05:00] Strongly threatening ...Nxe5.} 17. Bxa5 {[%emt 0:11:28]} Qxa5 {[%emt 0:01:08]} 18. Nxd7 {[%emt 0:00:07]} bxc4 {[%emt 0:05:11]} 19. bxc4 {[%emt 0:00:59]} (19. Nxf8 $2 cxb3 20. axb3 Bxe2 $19) (19. Qe3 $15 Rfe8 20. Nc5) 19... Rfd8 $17 {[%emt 0:15:01]} 20. Nc5 {[%emt 0:01:50]} Qc3 {[%emt 0:03:22]} 21. Nxa6 {[%emt 0:01:07]} Rxa6 {[%emt 0:00:24]} 22. Rad1 {[%emt 0:08:42]} e3 {[%emt 0:04:35]} ({Much weaker is} 22... Rxd4 $6 23. fxe4 Qxc4 (23... fxe4 $2 24. Qf2 $18) 24. Qxc4 Rxc4 25. exf5 exf5 26. Rxf5 $11) (22... Rb8 $1 $17 {[%cal Rb8b2]} 23. d5 exd5 24. cxd5 Ra7) 23. Rd3 {[%emt 0:04:41]} (23. d5 $1 $11) 23... Qxc4 {[%emt 0:05:16] Black has more active pieces.} 24. Rxe3 {[%emt 0:01:33]} Qxd4 {[%emt 0:00:16][%cal Oa6a2]} ({Don't play} 24... Qxa2 25. Rf2 Qxe2 26. Rfxe2 $11) ({Reject} 24... Rxd4 $6 25. Rxe6 Qxe2 26. Rxe2 $11) 25. Rf2 {[%emt 0:01:50][%cal Oe3e6] [#]} Rxa2 $3 {[%emt 0:01:22][%mdl 512]} 26. Qxa2 {[%emt 0:00:04]} Qxe3 $19 {[%emt 0:00:05][%mdl 4096] Endgame. KQR-KQR} 27. Kg2 {[%emt 0:00:03]} Qe5 {[%emt 0:02:05]} 28. Qa6 {[%emt 0:04:03]} Qb5 {[%emt 0:01:21]} 29. Qa7 {[%emt 0:00:39]} Qb8 {[%emt 0:01:18]} 30. Qa6 {[%emt 0:00:14]} Qc8 {[%emt 0:01:14]} 31. Qb6 {[%emt 0:00:30]} h6 {[%emt 0:01:09]} 32. h4 {[%emt 0:03:34]} Rd5 {[%emt 0:02:09]} 33. Rc2 {[%emt 0:00:50]} c5 {[%emt 0:00:27]} 34. Ra2 {[%emt 0:00:15]} Kh7 {[%emt 0:01:39]} 35. Ra7 {[%emt 0:00:37]} Qe8 {[%emt 0:01:43] Prevents Re7.} 36. Kh3 {[%emt 0:02:10]} Rd3 {[%emt 0:00:53]} 37. Qb7 {[%emt 0:01:01]} (37. Kg2 $142) 37... Qf8 {[%emt 0:00:06]} (37... Qg6 $142 {[%cal Of5f4] ...f4! is the strong threat.} 38. Ra4 Qf6) 38. Qc6 {[%emt 0:02:57] [#]} Qd6 {[%emt 0:00:24]} (38... Qf6 $1 $19 {[%cal Rf6d4] White must now prevent ...Qd4.} 39. Ra8 Qf7 40. Qxc5 Rxf3) 39. Qb7 $2 {[%emt 0:04:43][%mdl 8192] Now White is beyond hope.} (39. Qxd6 $17 Rxd6 40. Rc7) 39... Qd4 {[%emt 0:00:31] ...c4 would now be deadly.} 40. h5 {[%emt 0:01:17] [#]} Rd1 $1 {[%emt 0:00:37]} 41. f4 {[%emt 0:30:57]} Rg1 {[%emt 0:09:09] ( -> ...Qc3)} 42. Qc6 {[%emt 0:00:00]} Qc3 {[%emt 0:01:21] Weighted Error Value: White=0.56/Black=0.14 (very precise) .  Loses game:     	White=1     	---        Mistake:       	White=3     	Black=3      Inaccurate:     	White=2     	---        OK:         	White=10    	Black=18     Best:        	White=2     	Black=2      Strong:       	---       	Black=1      Brilliant:      	---       	Black=1} 0-1

[Event "Czech Championship 2024"]
[Site "Ostrava"]
[Date "2024.05.04"]
[Round "8.4"]
[White "Nemec, Jachym"]
[Black "Jirovsky, Milos"]
[Result "1-0"]
[ECO "A07"]
[WhiteElo "2416"]
[BlackElo "2450"]
[Annotator "TA"]
[PlyCount "81"]
[EventDate "2024.04.25"]
[EventType "tourn"]
[EventCountry "CZE"]
[SourceTitle "playchess.com"]
[Source "ChessBase"]
[SourceQuality "1"]
[TimeControl "40/5400+30:1800+30"]

{[%evp 9,81,12,24,4,5,3,0,0,0,0,8,-24,39,28,24,20,24,18,25,15,45,39,35,41,44,43,22,20,29,20,45,45,50,41,48,38,118,110,106,102,168,160,236,197,282,257,258,214,227,216,216,210,270,262,258,245,291,259,433,324,437,445,590,552,530,281,560,356,353,320,560,547,620,601]} 1. Nf3 {[%emt 0:00:04]} d5 {[%emt 0:00:13]} 2. g3 {[%emt 0:00:10]} Nf6 {[%emt 0:00:45]} 3. Bg2 {[%emt 0:00:16]} Bg4 {[%emt 0:01:49]} 4. O-O {[%emt 0:01:50]} Nbd7 {[%emt 0:00:51]} 5. d3 {[%emt 0:02:02]} e5 {[%emt 0:04:30]} 6. h3 {[%emt 0:00:34]} Bxf3 {[%emt 0:00:44]} 7. Bxf3 {[%emt 0:00:16]} c6 {[%emt 0:00:07]} 8. Bg2 {[%emt 0:05:33] The position is equal.} Bc5 {[%emt 0:01:13]} 9. Nd2 {[%emt 0:07:54]} O-O {[%emt 0:01:22]} 10. c4 {[%emt 0:03:45]} dxc4 {[%emt 0:06:21]} (10... d4 $11) 11. Nxc4 $14 {[%emt 0:00:22][%cal Ob2b4]} Re8 {[%emt 0:00:06]} 12. Qc2 {[%emt 0:00:47][%cal Ob2b4]} Qe7 {[%emt 0:02:54]} 13. e3 {[%emt 0:03:13]} Nb6 {[%emt 0:06:39]} 14. b3 {[%emt 0:08:59]} Nxc4 {[%emt 0:02:00]} 15. bxc4 {[%emt 0:00:39]} Rad8 {[%emt 0:02:22]} 16. Rb1 {[%emt 0:02:37]} Rd6 {[%emt 0:03:19]} 17. Rd1 {[%emt 0:03:34][%cal Bf1d1,Bd1d2,Bd2c2,Bc2c8][%mdl 32]} h5 {[%emt 0:05:34]} 18. Bb2 {[%emt 0:05:04]} Qd7 {[%emt 0:05:15]} 19. Qe2 {[%emt 0:06:42]} Qf5 {[%emt 0:02:19]} 20. Bc3 {[%emt 0:02:50]} Re7 {[%emt 0:01:55][%cal Oh5h4]} 21. Rd2 {[%emt 0:01:16]} Qg6 {[%emt 0:03:06]} 22. Rbd1 {[%emt 0:08:33][%cal Bb1d1,Bd1c1,Bc1c6][%mdl 32]} b5 {[%emt 0:13:49] White now steadily converts the win.} ({Black should play} 22... Rdd7 $14) 23. cxb5 $16 {[%emt 0:01:22]} cxb5 {[%emt 0:00:02]} 24. Rc2 {[%emt 0:02:22]} Nd7 {[%emt 0:03:39]} (24... Ree6 $16 {was worth a try.}) 25. h4 {[%emt 0:04:52]} f5 {[%emt 0:12:24]} (25... Ba3 $16 26. Ba5 Nf6 27. Rc8+ Kh7) 26. Bb2 {[%emt 0:04:12] A strong pair of Bishops.} Qf7 {[%emt 0:01:52]} (26... b4 $142 27. Rc4 Bb6) 27. Rdc1 $18 {[%emt 0:02:48]} Bb4 {[%emt 0:01:02]} 28. Rc8+ {[%emt 0:02:34]} Kh7 {[%emt 0:00:33]} 29. a3 {[%emt 0:02:17]} Ba5 {[%emt 0:00:32]} 30. R1c6 {[%emt 0:03:23] Wards off Bb6} Nb6 {[%emt 0:04:44]} 31. Rxd6 {[%emt 0:01:24]} Nxc8 {[%emt 0:00:01]} 32. Rd5 {[%emt 0:01:26]} Qe8 {[%emt 0:00:33]} 33. d4 {[%emt 0:01:34][%cal Bd3d4,Bd4e5][%mdl 32]} a6 $2 {[%emt 0:01:24] [#]} (33... Bc7 34. Rxb5 exd4 35. Bxd4 (35. Rxf5 g6 $18) 35... g6) 34. Rxe5 {[%emt 0:01:20]} Rxe5 {[%emt 0:00:18]} 35. dxe5 {[%emt 0:00:02]} Nb6 {[%emt 0:00:07]} 36. Bd4 {[%emt 0:04:01]} Nc4 {[%emt 0:00:17]} 37. f4 {[%emt 0:01:58]} g6 $2 {[%emt 0:01:08]} (37... Nd2 38. e6 Kg6) 38. e4 {[%emt 0:01:12][%cal Be3e4,Be4f5][%mdl 32] [#] Threatens to win with exf5.} Qd8 {[%emt 0:00:32]} 39. Bf2 {[%emt 0:01:15] aiming for exf5.} Bb6 $2 {[%emt 0:00:35]} (39... fxe4 {is a better defense.} 40. Bxe4 Kg7) 40. exf5 {[%emt 0:01:25]} Bxf2+ {[%emt 0:00:13]} 41. Qxf2 {[%emt 0:31:07] Weighted Error Value: White=0.27 (precise) /Black=0.51.  Mistake:       	---       	Black=8      Inaccurate:     	White=3     	Black=3      OK:         	White=13    	Black=10     Best:        	White=1     	Black=1} ({Weaker is} 41. Kxf2 Qd4+ 42. Kf1 Ne3+ 43. Kg1 Ng4+ 44. Kf1 (44. Kh1 Nf2+ 45. Kg1 Ng4+ 46. Kf1 Ne3+ 47. Kg1 Ng4+ $11) 44... Ne3+ 45. Kg1 Ng4+ 46. Kh1 Nf2+ 47. Kh2 (47. Kg1 Ng4+ $11) 47... Ng4+ 48. Kh1 Nf2+ 49. Kh2 (49. Kg1 Ng4+ $11) 49... Ng4+ 50. Kh1 $11) 1-0

[Event "Czech Championship 2024"]
[Site "Ostrava"]
[Date "2024.05.04"]
[Round "8.5"]
[White "Stalmach, Richard"]
[Black "Finek, Vaclav"]
[Result "1-0"]
[ECO "D52"]
[WhiteElo "2446"]
[BlackElo "2431"]
[Annotator "TA"]
[PlyCount "89"]
[EventDate "2024.04.25"]
[EventType "tourn"]
[EventCountry "CZE"]
[SourceTitle "playchess.com"]
[Source "ChessBase"]
[SourceQuality "1"]
[TimeControl "40/5400+30:1800+30"]

{[%evp 16,89,33,25,38,26,26,21,26,16,24,25,31,20,24,33,28,34,24,33,32,0,50,0,25,20,29,18,23,20,34,33,24,34,24,30,236,224,225,213,237,235,250,225,434,400,507,505,1041,472,548,509,473,513,758,757,2272,2172,1695,1564,6062,6041,29985,29981,29986,29987,29988,29985,29990,29991,29994,29991,29994,29995,29995,29995]} 1. Nf3 {[%emt 0:00:13]} Nf6 {[%emt 0:00:08]} 2. c4 {[%emt 0:00:11]} c6 {[%emt 0:00:05]} 3. Nc3 {[%emt 0:02:13]} d5 {[%emt 0:00:05]} 4. d4 {[%emt 0:00:11]} e6 {[%emt 0:00:06]} 5. Bg5 {[%emt 0:02:52]} Nbd7 {[%emt 0:00:16]} 6. e3 {[%emt 0:00:40]} Qa5 {[%emt 0:00:26]} 7. cxd5 {[%emt 0:02:40]} Nxd5 {[%emt 0:00:21]} 8. Qd2 {[%emt 0:00:20]} Bb4 {[%emt 0:01:19]} 9. Rc1 {[%emt 0:00:28]} Nxc3 {[%emt 0:00:32]} 10. bxc3 {[%emt 0:00:08]} Ba3 {[%emt 0:00:05]} 11. Rb1 {[%emt 0:01:42]} h6 {[%emt 0:04:34] The position is equal.} 12. Bh4 {[%emt 0:00:53]} b6 {[%emt 0:00:06]} 13. Qd3 {[%emt 0:00:03]} Be7 {[%emt 0:08:22]} 14. Bxe7 {[%emt 0:01:30]} Kxe7 {[%emt 0:00:09]} 15. Be2 {[%emt 0:01:07]} Bb7 {[%emt 0:02:10][%cal Oc6c5]} 16. O-O {[%emt 0:02:00]} c5 {[%emt 0:00:08]} 17. c4 {[%emt 0:12:34]} Rhe8 {[%emt 0:07:38]} 18. Rb5 {[%emt 0:18:32]} Qa4 {[%emt 0:10:01]} ({Better is} 18... Qxa2 $11 19. Re1 Rac8) 19. Rfb1 {[%emt 0:05:39]} (19. dxc5 $14 Nxc5 20. Rxc5 bxc5 21. Ne5) 19... Red8 {[%emt 0:17:17]} 20. Bd1 {[%emt 0:18:09]} Qa6 {[%emt 0:05:52]} 21. d5 {[%emt 0:07:58] Repels Bc6} exd5 {[%emt 0:05:58]} 22. cxd5 {[%emt 0:00:16]} Nf6 $1 {[%emt 0:00:52]} 23. e4 $36 {[%emt 0:00:46][%mdl 2048] aiming for Ne5. White has the initiative.} Bc6 {[%emt 0:35:30] [#]} (23... Qxa2 $6 24. R5b2 Qa5 25. Qc2 $16) 24. a4 {[%cal Of3d4]} Bxb5 {[%emt 0:00:00]} 25. axb5 {[%emt 0:00:02]} Qb7 {[%emt 0:00:00] A mistake that costs the game.} (25... c4 $11 {and Black has nothing to worry.} 26. Qc2 Qa3 27. d6+ Qxd6 (27... Kxd6 28. e5+ Ke7 29. exf6+ gxf6 30. Be2 $18)) 26. Ne5 $18 {[%emt 0:02:37] And now Nc6+ would win.} Kf8 {[%emt 0:00:00]} 27. Nc6 {[%emt 0:00:07][%cal Od1b3]} Nxe4 {[%emt 0:00:00]} 28. Qxe4 {[%emt 0:04:06][%cal Oe4h7] Black is weak on the light squares} Re8 {[%emt 0:00:00]} 29. Ne5 {[%emt 0:00:02]} f6 $2 {[%emt 0:00:00] [#]} (29... Rad8) 30. f4 $1 {[%emt 0:00:12][%cal Od1b3,Bf2f4,Bf4e5,Be5e6][%mdl 32]} fxe5 {[%emt 0:00:00]} (30... c4 31. Qf5) 31. fxe5 {[%emt 0:00:05]} Kg8 {[%emt 0:00:00]} (31... g6 $142 32. Bc2 (32. Qxg6 Qg7 $16) 32... Qg7) 32. Bc2 {[%emt 0:00:49]} (32. Bb3 $142 {d6+ is the strong threat.} c4 33. Bxc4) 32... g5 {[%emt 0:00:00]} 33. e6 {[%emt 0:00:48]} Rad8 {[%emt 0:00:00][%cal Ob7g7]} 34. Rd1 {[%emt 0:05:30]} Kh8 {[%emt 0:00:21]} 35. h4 {[%emt 0:02:31] Black must now prevent hxg5.} gxh4 {[%emt 0:04:44]} 36. Qxh4 {[%emt 0:00:02]} Qg7 {[%emt 0:00:35]} 37. d6 {[%emt 0:00:21]} Rg8 {[%emt 0:00:15]} 38. Qe4 {[%emt 0:00:06] Threatening mate with e7.} Rde8 {[%emt 0:00:24]} 39. e7 {[%emt 0:01:17] White mates.} Qf7 {[%emt 0:01:05] Wards off Bb3} 40. Rf1 {[%emt 0:02:06]} Qg7 {[%emt 0:00:07] [#]} 41. Rf6 $3 {[%emt 0:31:48][%mdl 512]} c4 {[%emt 0:30:09] [#]} (41... a5 42. bxa6) 42. Kh1 $1 {[%emt 0:02:00]} a6 {[%emt 0:00:00]} (42... Qxg2+ 43. Qxg2) 43. bxa6 {[%emt 0:00:00]} b5 {[%emt 0:00:00][%cal Bb6b5,Bb5b4][%mdl 32] [#]} 44. g4 $1 {[%emt 0:00:00][%mdl 512]} b4 {[%emt 0:00:00]} (44... Rxe7 45. dxe7) 45. Qe6 {[%emt 0:00:00] Weighted Error Value: White=0.17 (very precise) /Black=0.51.  Loses game:     	---       	Black=1      Mistake:       	White=2     	Black=3      Inaccurate:     	White=1     	Black=2      OK:         	White=8     	Black=10     Best:        	White=5     	Black=2      Strong:       	White=1     	Black=1} 1-0

[Event "Czech Championship 2024"]
[Site "Ostrava"]
[Date "2024.05.05"]
[Round "9.1"]
[White "Finek, Vaclav"]
[Black "Hrbek, Stepan"]
[Result "1-0"]
[ECO "A62"]
[WhiteElo "2431"]
[BlackElo "2407"]
[Annotator "TA"]
[PlyCount "73"]
[EventDate "2024.04.25"]
[EventType "tourn"]
[EventCountry "CZE"]
[SourceTitle "playchess.com"]
[Source "ChessBase"]
[SourceQuality "1"]
[TimeControl "40/5400+30:1800+30"]

{[%evp 18,73,25,14,28,38,33,28,25,21,21,25,25,0,0,0,11,2,17,10,8,11,44,0,7,16,8,0,27,41,46,8,30,35,140,62,70,68,45,56,54,0,0,0,43,0,0,0,59,62,548,530,1388,1386,1467,1450,1289,1216]} 1. d4 {[%emt 0:00:02]} Nf6 {[%emt 0:00:12]} 2. c4 {[%emt 0:00:05]} e6 {[%emt 0:00:09]} 3. g3 {[%emt 0:00:04]} c5 {[%emt 0:00:12]} 4. d5 {[%emt 0:00:04]} exd5 {[%emt 0:00:07]} 5. cxd5 {[%emt 0:00:04]} d6 {[%emt 0:00:08]} 6. Nc3 {[%emt 0:00:05]} g6 {[%emt 0:00:08][%cal Bg7g6,Bg6g5,Bg5g4][%mdl 32]} 7. Bg2 {[%emt 0:00:03]} Bg7 {[%emt 0:00:07]} 8. Nf3 {[%emt 0:00:05]} O-O {[%emt 0:00:07]} 9. O-O {[%emt 0:00:07]} Re8 {[%emt 0:00:38]} 10. Bf4 {[%emt 0:00:06]} h6 {[%emt 0:00:18]} 11. Qc1 {[%emt 0:10:23]} g5 {[%emt 0:00:15]} 12. Bd2 {[%emt 0:00:22]} Bf5 {[%emt 0:00:15] White has an edge.} 13. h4 {[%emt 0:00:49]} g4 {[%emt 0:00:40]} 14. Ne1 {[%emt 0:00:17]} Kh7 {[%emt 0:00:43]} 15. Nc2 {[%emt 0:05:37]} Bg6 {[%emt 0:00:16]} 16. Ne3 {[%emt 0:07:44][%cal Oh4h5]} Nbd7 {[%emt 0:07:04] [#]} 17. h5 $1 {[%emt 0:10:26]} Nxh5 {[%emt 0:00:20]} 18. Nxg4 {[%emt 0:00:12][%cal Be3g4,Bg4h2,Bh2f3,Bf3e1][%mdl 32] next Bf3 is good for White.} f5 {[%emt 0:00:13]} 19. Nh2 {[%emt 0:02:14]} Ndf6 {[%emt 0:20:28][%cal Ob7b5]} 20. Nf3 {[%emt 0:07:09]} Ne4 {[%emt 0:02:05]} 21. Nxe4 {[%emt 0:07:54]} Rxe4 {[%emt 0:03:59]} 22. e3 {[%emt 0:01:48]} b5 {[%emt 0:04:03]} 23. Bc3 {[%emt 0:00:17]} Nf6 {[%emt 0:02:23]} 24. a3 {[%emt 0:09:24]} (24. Nh4 Rxh4 25. gxh4 b4 $11) 24... a5 {[%emt 0:04:59][%cal Ba7a5,Ba5b4][%mdl 32]} 25. Ne1 {[%emt 0:08:23]} ({Much weaker is} 25. Nh4 Rxh4 26. gxh4 Qe7 $11) 25... b4 {[%emt 0:05:54] [#]} 26. axb4 {[%emt 0:02:10]} ({White should play} 26. Bxf6 $1 $16 Bxf6 27. Bxe4 fxe4 28. axb4 cxb4 29. Qd2) 26... axb4 $14 {[%emt 0:02:17] aiming for ...Rxa1.} 27. Bxf6 {[%emt 0:05:38]} Rxa1 {[%emt 0:04:30]} 28. Qxa1 {[%emt 0:00:04]} Qxf6 {[%emt 0:00:07]} 29. Qa6 {[%emt 0:06:02]} (29. Bxe4 $14 fxe4 30. Qa6) 29... f4 {[%emt 0:24:17]} 30. exf4 {[%emt 0:02:52][%cal Be3f4,Bf4f5][%mdl 32]} Rd4 {[%emt 0:00:58]} 31. b3 {[%emt 0:01:00]} (31. Nf3 $5 Bd3 (31... Rxd5 32. Qa8 $18) 32. Qa1 Bxf1 (32... Rxd5 $2 {is the wrong capture.} 33. Rd1 $18) 33. Qxf1 $14) 31... Rd1 {[%emt 0:02:52]} 32. Qe2 {[%emt 0:00:20] Prevents Qe7.} Qd4 {[%emt 0:02:25]} (32... Rb1 $11) 33. Qe6 {[%emt 0:03:16][%cal Og2f3] Threatens to win with Bf3!} c4 $2 {[%emt 0:01:53][%mdl 8192] [#] Loses the game.} (33... Qf6 $1 $14) 34. Bf3 $1 $18 {[%emt 0:01:42] f5 would now be deadly. White is clearly winning.} cxb3 {[%emt 0:04:20][%cal Bc4b3,Bb3b2][%mdl 32]} 35. f5 {[%emt 0:04:20]} Bf7 {[%emt 0:00:08]} 36. Qxf7 {[%emt 0:00:05]} b2 {[%emt 0:00:10]} 37. Bxd1 {[%emt 0:00:43] Weighted Error Value: White=0.12 (very precise) /Black=0.49.  Loses game:     	---       	Black=1      Mistake:       	White=2     	Black=2      Inaccurate:     	White=3     	Black=4      OK:         	White=11    	Black=11     Best:        	White=3     	Black=1      Strong:       	White=1     	---} 1-0

[Event "Czech Championship 2024"]
[Site "Ostrava"]
[Date "2024.05.05"]
[Round "9.2"]
[White "Jirovsky, Milos"]
[Black "Stalmach, Richard"]
[Result "0-1"]
[ECO "E06"]
[WhiteElo "2450"]
[BlackElo "2446"]
[Annotator "TA"]
[PlyCount "92"]
[EventDate "2024.04.25"]
[EventType "tourn"]
[EventCountry "CZE"]
[SourceTitle "playchess.com"]
[Source "ChessBase"]
[SourceQuality "1"]
[TimeControl "40/5400+30:1800+30"]

{[%evp 9,92,10,34,36,34,18,41,29,55,40,50,30,24,0,32,-8,39,20,23,-16,0,0,0,5,7,0,0,0,4,-5,-1,-10,0,0,0,0,14,0,0,-82,-81,-85,-93,-97,0,0,0,0,0,0,0,0,-6,0,-16,-51,-52,-48,-70,-148,-158,-270,-275,-344,-293,-328,-344,-329,-223,-223,-223,-1000,-1260,-1173,-562,-2117,-1991,-11616,-11007,-6931,-6416,-29980,-29981,-29978,-29976]} 1. Nf3 {[%emt 0:00:02]} d5 {[%emt 0:00:09]} 2. d4 {[%emt 0:00:14]} Nf6 {[%emt 0:00:15]} 3. c4 {[%emt 0:00:24]} e6 {[%emt 0:00:05]} 4. g3 {[%emt 0:00:45]} Be7 {[%emt 0:01:31]} 5. Bg2 {[%emt 0:00:17]} Ne4 {[%emt 0:00:32]} 6. O-O {[%emt 0:00:32]} f5 {[%emt 0:00:26]} 7. Nbd2 {[%emt 0:02:24]} c6 {[%emt 0:02:02]} 8. Nxe4 {[%emt 0:03:38] White is slightly better.} fxe4 {[%emt 0:00:05]} 9. Ne5 {[%emt 0:00:04]} Nd7 {[%emt 0:00:06]} 10. Nxd7 {[%emt 0:01:44]} Bxd7 {[%emt 0:00:09]} 11. Qb3 {[%emt 0:02:15]} Qb6 {[%emt 0:06:46]} 12. Bf4 {[%emt 0:03:29][%cal Bc1f4,Bf4e5,Be5d6][%mdl 32]} O-O {[%emt 0:03:35]} (12... Bf6 $11) 13. Be5 {[%emt 0:08:24]} Bf6 {[%emt 0:03:18]} 14. Bd6 {[%emt 0:01:02]} Qxb3 {[%emt 0:12:06]} 15. axb3 {[%emt 0:00:03]} Rfd8 {[%emt 0:00:07]} 16. Rfd1 {[%emt 0:06:15]} Be8 {[%emt 0:00:37]} 17. Bc7 {[%emt 0:02:17]} Rdc8 {[%emt 0:02:23]} 18. Bd6 {[%emt 0:00:16]} Bh5 {[%emt 0:06:51]} 19. Rd2 {[%emt 0:05:34]} Rd8 {[%emt 0:05:16]} 20. Bc7 {[%emt 0:04:16]} Re8 {[%emt 0:01:27]} 21. f3 {[%emt 0:13:53]} e3 {[%emt 0:13:41]} 22. Rdd1 {[%emt 0:00:44]} g5 {[%emt 0:00:25]} 23. c5 {[%emt 0:02:22]} Bg6 {[%emt 0:02:58]} 24. Rac1 {[%emt 0:00:47] Prevents Bc2.} (24. b4 $11) 24... e5 $17 {[%emt 0:00:04] Black is more active.} 25. dxe5 {[%emt 0:00:13]} Rxe5 {[%emt 0:00:03]} 26. Ba5 {[%emt 0:03:06] [#]} d4 {[%emt 0:10:29]} 27. Rxd4 $11 {[%emt 0:08:56]} Rxc5 {[%emt 0:00:10]} 28. Rxc5 {[%emt 0:00:06]} Bxd4 {[%emt 0:00:04]} 29. Rxg5 {[%emt 0:00:11]} Bxb2 {[%emt 0:00:08] Threatens to win with ...b6.} 30. f4 {[%emt 0:00:17]} Rf8 {[%emt 0:05:22]} 31. Be4 $1 {[%emt 0:05:09][%cal Of4f5] Prevents Rf5. And now f5! would win.} Bf6 {[%emt 0:01:16]} 32. Rg4 {[%emt 0:00:16][%cal Of4f5]} Kf7 $1 {[%emt 0:00:25]} 33. Bxg6+ {[%emt 0:00:40]} hxg6 $15 {[%emt 0:00:15][%mdl 4096] Endgame. KRB-KRB} 34. Kg2 {[%emt 0:00:32] [#]} (34. f5 $1 $15) 34... b6 $1 $17 {[%emt 0:02:36]} 35. Bb4 {[%emt 0:02:29]} (35. Be1 $17 {was the only chance.}) 35... Rd8 $19 {[%emt 0:00:25]} 36. f5 {[%emt 0:08:44]} gxf5 {[%emt 0:00:04]} 37. Rf4 {[%emt 0:00:05]} c5 {[%emt 0:06:00]} 38. Ba3 {[%emt 0:00:24]} Rd1 {[%emt 0:07:29]} 39. Rxf5 {[%emt 0:03:26] Bb2 would now be deadly.} Ke6 {[%emt 0:00:06]} 40. Rf1 {[%emt 0:01:45] [#]} (40. g4) 40... Rxf1 $1 {[%emt 0:00:04]} 41. Kxf1 {[%emt 0:30:03] KB-KB} Kd5 {[%emt 0:30:03]} (41... Bc3 $142 42. h4 Kd5) 42. h4 {[%emt 0:02:10]} b5 {[%emt 0:01:16] Strongly threatening ...b4.} 43. Ke1 {[%emt 0:01:53]} b4 {[%emt 0:06:33]} 44. Bc1 {[%emt 0:00:07]} c4 {[%emt 0:00:05]} 45. bxc4+ {[%emt 0:02:13]} Kxc4 {[%emt 0:01:25]} 46. Bxe3 {[%emt 0:01:38]} a5 {[%emt 0:00:05] Weighted Error Value: White=0.81/Black=0.19 (very precise) .  Mistake:       	White=4     	Black=2      Inaccurate:     	White=4     	Black=3      OK:         	White=14    	Black=17     Best:        	White=1     	---        Strong:       	White=1     	Black=3} 0-1